[Event "Titled Tuesday Blitz January 03 Early 2023"]
[White "Aradhya, Garg"]
[Black "Zierk, Steven"]
[WhiteFideId "25006746"]
[BlackFideId "2034255"]
[WhiteElo "2284"]
[BlackElo "2488"]
[Result "0-1"]
[Round "11"]
[TimeControl "180+2"]
[Date "2023.01.03"]
[WhiteClock "0:00:01"]
[BlackClock "0:00:09"]

1. d4 {[%clk 0:03:00]}  e6 {[%clk 0:02:59]} 2. c4 {[%clk 0:02:59]}  f5 {[%clk 0:02:59]} 3. Nf3 {[%clk 0:02:57]}  Nf6 {[%clk 0:02:59]} 4. Nc3 {[%clk 0:02:57]}  d5 {[%clk 0:02:57]} 5. Bf4 {[%clk 0:02:53]}  c6 {[%clk 0:02:52]} 6. e3 {[%clk 0:02:53]}  Bd6 {[%clk 0:02:47]} 7. Be5 {[%clk 0:02:47]}  O-O {[%clk 0:02:43]} 8. Bd3 {[%clk 0:02:44]}  Ne4 {[%clk 0:02:32]} 9. O-O {[%clk 0:02:44]}  Be7 {[%clk 0:02:12]} 10. Qb3 {[%clk 0:02:30]}  Kh8 {[%clk 0:02:05]} 11. Rfc1 {[%clk 0:02:11]}  Nd7 {[%clk 0:02:02]} 12. Ne2 {[%clk 0:02:09]}  Nxe5 {[%clk 0:01:55]} 13. dxe5 {[%clk 0:01:56]}  g5 {[%clk 0:01:44]} 14. Qc2 {[%clk 0:01:23]}  Bd7 {[%clk 0:01:40]} 15. Rd1 {[%clk 0:01:19]}  Be8 {[%clk 0:01:33]} 16. Ng3 {[%clk 0:01:18]}  Bg6 {[%clk 0:01:23]} 17. Nd4 {[%clk 0:01:11]}  Qc8 {[%clk 0:01:16]} 18. cxd5 {[%clk 0:01:07]}  exd5 {[%clk 0:01:14]} 19. f3 {[%clk 0:01:00]}  Nxg3 {[%clk 0:01:14]} 20. hxg3 {[%clk 0:01:01]}  c5 {[%clk 0:01:14]} 21. Nb5 {[%clk 0:00:57]}  Qc6 {[%clk 0:01:04]} 22. f4 {[%clk 0:00:42]}  c4 {[%clk 0:01:02]} 23. Nd4 {[%clk 0:00:37]}  cxd3 {[%clk 0:01:01]} 24. Qxc6 {[%clk 0:00:37]}  bxc6 {[%clk 0:01:01]} 25. Nxc6 {[%clk 0:00:38]}  Bc5 {[%clk 0:00:59]} 26. Rxd3 {[%clk 0:00:38]}  Rfc8 {[%clk 0:00:55]} 27. Na5 {[%clk 0:00:36]}  Bb6 {[%clk 0:00:51]} 28. Nb3 {[%clk 0:00:35]}  Rc2 {[%clk 0:00:51]} 29. a4 {[%clk 0:00:25]}  Re2 {[%clk 0:00:30]} 30. Nd4 {[%clk 0:00:19]}  Rxb2 {[%clk 0:00:30]} 31. a5 {[%clk 0:00:19]}  Bc5 {[%clk 0:00:30]} 32. Ne6 {[%clk 0:00:18]}  Rb5 {[%clk 0:00:27]} 33. Nxg5 {[%clk 0:00:13]}  Bh5 {[%clk 0:00:22]} 34. Kh2 {[%clk 0:00:12]}  Be2 {[%clk 0:00:19]} 35. Rxd5 {[%clk 0:00:11]}  Be7 {[%clk 0:00:16]} 36. Rxb5 {[%clk 0:00:10]}  Bxb5 {[%clk 0:00:17]} 37. Ne6 {[%clk 0:00:10]}  Rc8 {[%clk 0:00:17]} 38. Nd4 {[%clk 0:00:10]}  Bd3 {[%clk 0:00:17]} 39. Ra2 {[%clk 0:00:08]}  Be4 {[%clk 0:00:16]} 40. Rb2 {[%clk 0:00:07]}  Kg8 {[%clk 0:00:16]} 41. a6 {[%clk 0:00:06]}  Rc3 {[%clk 0:00:16]} 42. Rb8+ {[%clk 0:00:04]}  Kf7 {[%clk 0:00:16]} 43. Rb7 {[%clk 0:00:04]}  Rxe3 {[%clk 0:00:15]} 44. Rxa7 {[%clk 0:00:04]}  Rd3 {[%clk 0:00:15]} 45. Nb5 {[%clk 0:00:04]}  Kf8 {[%clk 0:00:12]} 46. Rc7 {[%clk 0:00:03]}  Rd2 {[%clk 0:00:11]} 47. a7 {[%clk 0:00:02]}  Rxg2+ {[%clk 0:00:11]} 48. Kh3 {[%clk 0:00:03]}  Ra2 {[%clk 0:00:11]} 49. Nd6 {[%clk 0:00:02]}  Bg2+ {[%clk 0:00:11]} 50. Kh2 {[%clk 0:00:01]}  Bd5+ {[%clk 0:00:10]} 51. Kg1 {[%clk 0:00:01]}  Bxd6 {[%clk 0:00:09]} 0-1


[Site "https://www.chess.com"]

[Event "Titled Tuesday Blitz January 03 Early 2023"]
[White "Krysa, Leandro"]
[Black "Sanal, Vahap"]
[WhiteFideId "116807"]
[BlackFideId "6300545"]
[WhiteElo "2541"]
[BlackElo "2600"]
[Result "0-1"]
[Round "11"]
[TimeControl "180+2"]
[Date "2023.01.03"]
[WhiteClock "0:00:01"]
[BlackClock "0:00:38"]

1. e4 {[%clk 0:03:00]}  e5 {[%clk 0:02:58]} 2. Nf3 {[%clk 0:03:00]}  Nc6 {[%clk 0:02:57]} 3. Nc3 {[%clk 0:03:01]}  Nf6 {[%clk 0:02:57]} 4. a4 {[%clk 0:03:01]}  d5 {[%clk 0:02:50]} 5. Bb5 {[%clk 0:02:59]}  Nxe4 {[%clk 0:02:48]} 6. Bxc6+ {[%clk 0:02:48]}  bxc6 {[%clk 0:02:48]} 7. Qe2 {[%clk 0:02:48]}  Nxc3 {[%clk 0:02:44]} 8. Qxe5+ {[%clk 0:02:46]}  Qe7 {[%clk 0:02:43]} 9. dxc3 {[%clk 0:02:41]}  Qxe5+ {[%clk 0:02:43]} 10. Nxe5 {[%clk 0:02:41]}  c5 {[%clk 0:02:44]} 11. Be3 {[%clk 0:02:34]}  f6 {[%clk 0:02:38]} 12. Nd3 {[%clk 0:02:33]}  c4 {[%clk 0:02:39]} 13. Nf4 {[%clk 0:02:27]}  c6 {[%clk 0:02:38]} 14. h4 {[%clk 0:02:23]}  Kf7 {[%clk 0:02:36]} 15. O-O-O {[%clk 0:02:18]}  h5 {[%clk 0:02:36]} 16. Rhe1 {[%clk 0:02:12]}  Bf5 {[%clk 0:02:32]} 17. Ne2 {[%clk 0:02:10]}  Be7 {[%clk 0:02:18]} 18. Nd4 {[%clk 0:01:57]}  Bd7 {[%clk 0:02:18]} 19. Bf4 {[%clk 0:01:57]}  Rhe8 {[%clk 0:02:15]} 20. f3 {[%clk 0:01:49]}  Bf8 {[%clk 0:02:14]} 21. a5 {[%clk 0:01:47]}  a6 {[%clk 0:02:12]} 22. b4 {[%clk 0:01:41]}  cxb3 {[%clk 0:02:04]} 23. Nxb3 {[%clk 0:01:38]}  Rxe1 {[%clk 0:01:58]} 24. Rxe1 {[%clk 0:01:38]}  c5 {[%clk 0:01:58]} 25. Bc7 {[%clk 0:01:27]}  Rc8 {[%clk 0:01:57]} 26. Bb6 {[%clk 0:01:27]}  Bd6 {[%clk 0:01:57]} 27. Rd1 {[%clk 0:01:25]}  Be6 {[%clk 0:01:55]} 28. Nd2 {[%clk 0:01:08]}  c4 {[%clk 0:01:35]} 29. Nf1 {[%clk 0:01:00]}  Bf4+ {[%clk 0:01:31]} 30. Ne3 {[%clk 0:00:53]}  Rb8 {[%clk 0:01:31]} 31. Kd2 {[%clk 0:00:49]}  Bg3 {[%clk 0:01:29]} 32. Ke2 {[%clk 0:00:47]}  Re8 {[%clk 0:01:27]} 33. Kf1 {[%clk 0:00:44]}  Bxh4 {[%clk 0:01:27]} 34. Nxd5 {[%clk 0:00:44]}  Bxd5 {[%clk 0:01:26]} 35. g3 {[%clk 0:00:37]}  Bxf3 {[%clk 0:01:22]} 36. Rd7+ {[%clk 0:00:33]}  Ke6 {[%clk 0:01:22]} 37. Rxg7 {[%clk 0:00:30]}  Bg5 {[%clk 0:01:23]} 38. Ra7 {[%clk 0:00:29]}  Kf5 {[%clk 0:01:20]} 39. Rxa6 {[%clk 0:00:26]}  Kg4 {[%clk 0:01:11]} 40. Bf2 {[%clk 0:00:25]}  Rd8 {[%clk 0:01:00]} 41. Re6 {[%clk 0:00:09]}  Rd1+ {[%clk 0:00:58]} 42. Be1 {[%clk 0:00:08]}  Ra1 {[%clk 0:00:49]} 43. a6 {[%clk 0:00:08]}  h4 {[%clk 0:00:48]} 44. a7 {[%clk 0:00:04]}  hxg3 {[%clk 0:00:39]} 45. a8=Q {[%clk 0:00:02]}  Rxa8 {[%clk 0:00:38]} 46. Bxg3 {[%clk 0:00:01]}  Kxg3 {[%clk 0:00:38]} 0-1


[Site "https://www.chess.com"]

[Event "Titled Tuesday Blitz January 03 Early 2023"]
[White "Kopylov, Alexander A."]
[Black "Csonka, Balazs"]
[WhiteFideId "4164857"]
[BlackFideId "742910"]
[WhiteElo "2397"]
[BlackElo "2496"]
[Result "1/2-1/2"]
[Round "11"]
[TimeControl "180+2"]
[Date "2023.01.03"]
[WhiteClock "0:00:18"]
[BlackClock "0:00:04"]

1. e4 {[%clk 0:02:58]}  Nf6 {[%clk 0:03:00]} 2. d3 {[%clk 0:02:58]}  d5 {[%clk 0:02:51]} 3. Nd2 {[%clk 0:02:58]}  e5 {[%clk 0:02:48]} 4. Ngf3 {[%clk 0:02:58]}  Nc6 {[%clk 0:02:49]} 5. Be2 {[%clk 0:02:58]}  g6 {[%clk 0:02:44]} 6. O-O {[%clk 0:02:58]}  Bg7 {[%clk 0:02:45]} 7. c3 {[%clk 0:02:58]}  a5 {[%clk 0:02:45]} 8. Qa4 {[%clk 0:02:57]}  O-O {[%clk 0:02:44]} 9. b4 {[%clk 0:02:57]}  Nd7 {[%clk 0:01:59]} 10. exd5 {[%clk 0:02:35]}  Nb6 {[%clk 0:01:57]} 11. Qb5 {[%clk 0:02:35]}  Qxd5 {[%clk 0:01:29]} 12. d4 {[%clk 0:01:58]}  exd4 {[%clk 0:01:07]} 13. cxd4 {[%clk 0:01:54]}  axb4 {[%clk 0:00:52]} 14. Nb3 {[%clk 0:01:48]}  Be6 {[%clk 0:00:32]} 15. Bf4 {[%clk 0:01:46]}  Qxb5 {[%clk 0:00:29]} 16. Bxb5 {[%clk 0:01:47]}  Nd5 {[%clk 0:00:30]} 17. Bg3 {[%clk 0:01:47]}  Nc3 {[%clk 0:00:28]} 18. Bxc6 {[%clk 0:01:46]}  bxc6 {[%clk 0:00:29]} 19. Bxc7 {[%clk 0:01:40]}  Rxa2 {[%clk 0:00:22]} 20. Nc5 {[%clk 0:01:37]}  Bc4 {[%clk 0:00:16]} 21. Rxa2 {[%clk 0:01:33]}  Nxa2 {[%clk 0:00:15]} 22. Rb1 {[%clk 0:01:30]}  Rc8 {[%clk 0:00:12]} 23. Bd6 {[%clk 0:01:27]}  Bd5 {[%clk 0:00:10]} 24. Ne5 {[%clk 0:01:18]}  Ra8 {[%clk 0:00:08]} 25. h3 {[%clk 0:01:10]}  Bf8 {[%clk 0:00:08]} 26. Bxf8 {[%clk 0:01:02]}  Kxf8 {[%clk 0:00:09]} 27. Ned3 {[%clk 0:01:02]}  Kg7 {[%clk 0:00:07]} 28. Nxb4 {[%clk 0:01:00]}  Rb8 {[%clk 0:00:03]} 29. Nca6 {[%clk 0:00:56]}  Rb6 {[%clk 0:00:03]} 30. Rb2 {[%clk 0:00:38]}  Bc4 {[%clk 0:00:03]} 31. Rc2 {[%clk 0:00:38]}  Bxa6 {[%clk 0:00:02]} 32. Nxa2 {[%clk 0:00:38]}  Bd3 {[%clk 0:00:02]} 33. Rd2 {[%clk 0:00:38]}  Bc4 {[%clk 0:00:02]} 34. Nc3 {[%clk 0:00:38]}  Rb3 {[%clk 0:00:02]} 35. Ne4 {[%clk 0:00:39]}  Bd5 {[%clk 0:00:02]} 36. Nc5 {[%clk 0:00:39]}  Rb1+ {[%clk 0:00:02]} 37. Kh2 {[%clk 0:00:39]}  Rc1 {[%clk 0:00:03]} 38. f3 {[%clk 0:00:39]}  Rc3 {[%clk 0:00:03]} 39. Nd3 {[%clk 0:00:37]}  Rc4 {[%clk 0:00:03]} 40. Ne5 {[%clk 0:00:36]}  Rc3 {[%clk 0:00:03]} 41. Kg3 {[%clk 0:00:37]}  Be6 {[%clk 0:00:04]} 42. h4 {[%clk 0:00:37]}  h5 {[%clk 0:00:03]} 43. Kf4 {[%clk 0:00:37]}  Bd5 {[%clk 0:00:03]} 44. Nd3 {[%clk 0:00:35]}  f6 {[%clk 0:00:03]} 45. g4 {[%clk 0:00:34]}  hxg4 {[%clk 0:00:03]} 46. fxg4 {[%clk 0:00:34]}  Kf7 {[%clk 0:00:03]} 47. g5 {[%clk 0:00:34]}  Ra3 {[%clk 0:00:03]} 48. Rd1 {[%clk 0:00:26]}  Rc3 {[%clk 0:00:03]} 49. Ke3 {[%clk 0:00:21]}  fxg5 {[%clk 0:00:02]} 50. hxg5 {[%clk 0:00:21]}  Ke6 {[%clk 0:00:03]} 51. Kd2 {[%clk 0:00:21]}  Rc4 {[%clk 0:00:03]} 52. Re1+ {[%clk 0:00:20]}  Kf5 {[%clk 0:00:03]} 53. Re5+ {[%clk 0:00:20]}  Kg4 {[%clk 0:00:03]} 54. Ke3 {[%clk 0:00:21]}  Rc3 {[%clk 0:00:03]} 55. Kd2 {[%clk 0:00:21]}  Rc4 {[%clk 0:00:03]} 56. Ke3 {[%clk 0:00:18]}  Rc3 {[%clk 0:00:03]} 57. Kd2 {[%clk 0:00:18]}  Rc4 {[%clk 0:00:04]} 1/2-1/2


[Site "https://www.chess.com"]

[Event "Titled Tuesday Blitz January 03 Early 2023"]
[White "Putnam, Liam"]
[Black "Tologon tegin, Semetei"]
[WhiteFideId "30938279"]
[BlackFideId "13800574"]
[WhiteElo "2285"]
[BlackElo "2372"]
[Result "0-1"]
[Round "11"]
[TimeControl "180+2"]
[Date "2023.01.03"]
[WhiteClock "0:00:20"]
[BlackClock "0:00:28"]

1. e4 {[%clk 0:03:00]}  e5 {[%clk 0:02:57]} 2. Nf3 {[%clk 0:03:00]}  Nc6 {[%clk 0:02:57]} 3. Bb5 {[%clk 0:02:57]}  a6 {[%clk 0:02:57]} 4. Ba4 {[%clk 0:02:56]}  Nf6 {[%clk 0:02:56]} 5. O-O {[%clk 0:02:56]}  Be7 {[%clk 0:02:55]} 6. Re1 {[%clk 0:02:56]}  b5 {[%clk 0:02:55]} 7. Bb3 {[%clk 0:02:57]}  d6 {[%clk 0:02:56]} 8. c3 {[%clk 0:02:57]}  Bg4 {[%clk 0:02:54]} 9. h3 {[%clk 0:02:57]}  Bh5 {[%clk 0:02:52]} 10. d4 {[%clk 0:02:57]}  Bxf3 {[%clk 0:02:48]} 11. Qxf3 {[%clk 0:02:38]}  exd4 {[%clk 0:02:46]} 12. Bd5 {[%clk 0:02:28]}  Nxd5 {[%clk 0:02:45]} 13. exd5 {[%clk 0:02:28]}  Ne5 {[%clk 0:02:45]} 14. Qg3 {[%clk 0:02:29]}  O-O {[%clk 0:02:41]} 15. cxd4 {[%clk 0:02:29]}  Ng6 {[%clk 0:02:38]} 16. Nc3 {[%clk 0:02:27]}  Bf6 {[%clk 0:02:31]} 17. Be3 {[%clk 0:02:27]}  Re8 {[%clk 0:02:31]} 18. Rac1 {[%clk 0:02:24]}  Qd7 {[%clk 0:02:30]} 19. Ne2 {[%clk 0:02:20]}  Rac8 {[%clk 0:02:26]} 20. Nf4 {[%clk 0:02:17]}  Qf5 {[%clk 0:02:23]} 21. Nxg6 {[%clk 0:02:15]}  hxg6 {[%clk 0:02:24]} 22. Qf3 {[%clk 0:02:07]}  Qd3 {[%clk 0:02:19]} 23. Red1 {[%clk 0:01:58]}  Qe4 {[%clk 0:02:15]} 24. Qxe4 {[%clk 0:01:58]}  Rxe4 {[%clk 0:02:15]} 25. Rc6 {[%clk 0:01:59]}  a5 {[%clk 0:02:15]} 26. Ra6 {[%clk 0:01:54]}  a4 {[%clk 0:02:15]} 27. Ra5 {[%clk 0:01:52]}  Rb8 {[%clk 0:02:14]} 28. Ra7 {[%clk 0:01:52]}  Re7 {[%clk 0:02:11]} 29. Rc1 {[%clk 0:01:51]}  Kf8 {[%clk 0:01:44]} 30. Raxc7 {[%clk 0:01:48]}  Rxc7 {[%clk 0:01:44]} 31. Rxc7 {[%clk 0:01:48]}  Ke8 {[%clk 0:01:45]} 32. Bf4 {[%clk 0:01:44]}  Be7 {[%clk 0:01:43]} 33. Rc6 {[%clk 0:01:42]}  Kd7 {[%clk 0:01:43]} 34. Kf1 {[%clk 0:01:42]}  g5 {[%clk 0:01:36]} 35. Bd2 {[%clk 0:01:41]}  Bd8 {[%clk 0:01:31]} 36. Bb4 {[%clk 0:01:41]}  Bc7 {[%clk 0:01:31]} 37. Ke2 {[%clk 0:01:40]}  Rb6 {[%clk 0:01:26]} 38. Rxc7+ {[%clk 0:01:28]}  Kxc7 {[%clk 0:01:25]} 39. Ba5 {[%clk 0:01:28]}  Kb7 {[%clk 0:01:26]} 40. Bxb6 {[%clk 0:01:29]}  Kxb6 {[%clk 0:01:27]} 41. Kd3 {[%clk 0:01:13]}  f5 {[%clk 0:01:24]} 42. g4 {[%clk 0:01:11]}  f4 {[%clk 0:01:17]} 43. Kc3 {[%clk 0:01:06]}  Ka5 {[%clk 0:01:15]} 44. b4+ {[%clk 0:01:06]}  Kb6 {[%clk 0:01:08]} 45. Kd3 {[%clk 0:01:06]}  Kc7 {[%clk 0:01:06]} 46. Ke4 {[%clk 0:01:06]}  g6 {[%clk 0:01:06]} 47. h4 {[%clk 0:01:06]}  gxh4 {[%clk 0:01:06]} 48. Kxf4 {[%clk 0:01:07]}  g5+ {[%clk 0:01:05]} 49. Kf3 {[%clk 0:00:53]}  Kd7 {[%clk 0:01:05]} 50. Kg2 {[%clk 0:00:52]}  Ke7 {[%clk 0:01:04]} 51. Kh3 {[%clk 0:00:51]}  Kf6 {[%clk 0:01:02]} 52. f3 {[%clk 0:00:50]}  Kg6 {[%clk 0:00:51]} 53. Kg2 {[%clk 0:00:48]}  a3 {[%clk 0:00:50]} 54. Kf2 {[%clk 0:00:47]}  Kf6 {[%clk 0:00:50]} 55. Ke3 {[%clk 0:00:42]}  Kg6 {[%clk 0:00:49]} 56. f4 {[%clk 0:00:38]}  gxf4+ {[%clk 0:00:45]} 57. Kxf4 {[%clk 0:00:39]}  Kf6 {[%clk 0:00:44]} 58. g5+ {[%clk 0:00:38]}  Kg6 {[%clk 0:00:44]} 59. Kg4 {[%clk 0:00:39]}  h3 {[%clk 0:00:43]} 60. Kxh3 {[%clk 0:00:40]}  Kxg5 {[%clk 0:00:43]} 61. Kg3 {[%clk 0:00:40]}  Kf5 {[%clk 0:00:43]} 62. Kf3 {[%clk 0:00:41]}  Kg5 {[%clk 0:00:43]} 63. Ke4 {[%clk 0:00:36]}  Kg4 {[%clk 0:00:43]} 64. Kd3 {[%clk 0:00:36]}  Kf3 {[%clk 0:00:43]} 65. Kc3 {[%clk 0:00:31]}  Ke4 {[%clk 0:00:44]} 66. Kb3 {[%clk 0:00:32]}  Kxd4 {[%clk 0:00:39]} 67. Kxa3 {[%clk 0:00:30]}  Kc4 {[%clk 0:00:39]} 68. Kb2 {[%clk 0:00:28]}  Kxb4 {[%clk 0:00:39]} 69. a3+ {[%clk 0:00:24]}  Kc4 {[%clk 0:00:39]} 70. Kc2 {[%clk 0:00:23]}  Kxd5 {[%clk 0:00:35]} 71. Kb3 {[%clk 0:00:23]}  Kc5 {[%clk 0:00:31]} 72. Kb2 {[%clk 0:00:21]}  Kc4 {[%clk 0:00:30]} 73. Kc2 {[%clk 0:00:20]}  d5 {[%clk 0:00:31]} 74. Kb2 {[%clk 0:00:20]}  d4 {[%clk 0:00:29]} 75. Kc2 {[%clk 0:00:20]}  d3+ {[%clk 0:00:30]} 76. Kb2 {[%clk 0:00:21]}  Kd4 {[%clk 0:00:28]} 77. Kc1 {[%clk 0:00:21]}  Kc3 {[%clk 0:00:28]} 78. Kd1 {[%clk 0:00:20]}  d2 {[%clk 0:00:28]} 0-1


[Site "https://www.chess.com"]

[Event "Titled Tuesday Blitz January 03 Early 2023"]
[White "Oparin, Grigoriy"]
[Black "Sychev, Klementy"]
[WhiteFideId "24125890"]
[BlackFideId "4114060"]
[WhiteElo "2667"]
[BlackElo "2547"]
[Result "1-0"]
[Round "11"]
[TimeControl "180+2"]
[Date "2023.01.03"]
[WhiteClock "0:00:08"]
[BlackClock "0:00:01"]

1. b3 {[%clk 0:03:00]}  d5 {[%clk 0:02:53]} 2. Bb2 {[%clk 0:03:00]}  Nf6 {[%clk 0:02:54]} 3. e3 {[%clk 0:02:59]}  Bf5 {[%clk 0:02:54]} 4. Nf3 {[%clk 0:02:59]}  h6 {[%clk 0:02:52]} 5. d4 {[%clk 0:02:55]}  e6 {[%clk 0:02:51]} 6. Bd3 {[%clk 0:02:56]}  Bd6 {[%clk 0:02:45]} 7. O-O {[%clk 0:02:54]}  O-O {[%clk 0:02:45]} 8. c4 {[%clk 0:02:55]}  c6 {[%clk 0:02:41]} 9. Nc3 {[%clk 0:02:55]}  Nbd7 {[%clk 0:02:39]} 10. Qc2 {[%clk 0:02:53]}  Bg4 {[%clk 0:02:36]} 11. Nd2 {[%clk 0:02:39]}  e5 {[%clk 0:02:35]} 12. cxd5 {[%clk 0:02:32]}  exd4 {[%clk 0:02:29]} 13. exd4 {[%clk 0:02:30]}  cxd5 {[%clk 0:02:29]} 14. h3 {[%clk 0:02:30]}  Bh5 {[%clk 0:02:22]} 15. Rfe1 {[%clk 0:02:20]}  Rc8 {[%clk 0:02:20]} 16. a3 {[%clk 0:02:20]}  Qb6 {[%clk 0:01:31]} 17. g4 {[%clk 0:01:13]}  Qxd4 {[%clk 0:00:50]} 18. gxh5 {[%clk 0:01:10]}  Qf4 {[%clk 0:00:49]} 19. Nf1 {[%clk 0:01:07]}  d4 {[%clk 0:00:47]} 20. Rad1 {[%clk 0:00:54]}  Qg5+ {[%clk 0:00:33]} 21. Kh1 {[%clk 0:00:46]}  Qxh5 {[%clk 0:00:26]} 22. Bf5 {[%clk 0:00:46]}  dxc3 {[%clk 0:00:22]} 23. Bc1 {[%clk 0:00:41]}  Bb8 {[%clk 0:00:13]} 24. Nh2 {[%clk 0:00:36]}  Rcd8 {[%clk 0:00:09]} 25. f4 {[%clk 0:00:30]}  Nc5 {[%clk 0:00:08]} 26. Rxd8 {[%clk 0:00:19]}  Rxd8 {[%clk 0:00:09]} 27. Be3 {[%clk 0:00:19]}  Nxb3 {[%clk 0:00:07]} 28. Rg1 {[%clk 0:00:09]}  Nd4 {[%clk 0:00:05]} 29. Bxd4 {[%clk 0:00:09]}  Rxd4 {[%clk 0:00:05]} 30. Qxc3 {[%clk 0:00:09]}  Rd8 {[%clk 0:00:01]} 31. Qxf6 {[%clk 0:00:08]} 1-0


[Site "https://www.chess.com"]

[Event "Titled Tuesday Blitz January 03 Early 2023"]
[White "Cardoso Cardoso, Jose Gabriel"]
[Black "Dominguez Perez, Leinier"]
[WhiteFideId "4430492"]
[BlackFideId "3503240"]
[WhiteElo "2492"]
[BlackElo "2739"]
[Result "1/2-1/2"]
[Round "11"]
[TimeControl "180+2"]
[Date "2023.01.03"]
[WhiteClock "0:00:04"]
[BlackClock "0:00:07"]

1. d4 {[%clk 0:03:00]}  d5 {[%clk 0:02:59]} 2. Nc3 {[%clk 0:03:00]}  Nf6 {[%clk 0:02:59]} 3. Bf4 {[%clk 0:03:00]}  c5 {[%clk 0:02:58]} 4. e3 {[%clk 0:03:00]}  cxd4 {[%clk 0:02:57]} 5. exd4 {[%clk 0:03:01]}  a6 {[%clk 0:02:56]} 6. Nf3 {[%clk 0:03:00]}  Bg4 {[%clk 0:02:55]} 7. Be2 {[%clk 0:02:58]}  Nc6 {[%clk 0:02:54]} 8. Ne5 {[%clk 0:02:54]}  Bxe2 {[%clk 0:02:53]} 9. Nxe2 {[%clk 0:02:31]}  e6 {[%clk 0:02:52]} 10. c3 {[%clk 0:02:24]}  Be7 {[%clk 0:02:45]} 11. O-O {[%clk 0:02:17]}  O-O {[%clk 0:02:45]} 12. Nd3 {[%clk 0:02:13]}  a5 {[%clk 0:02:24]} 13. a4 {[%clk 0:02:11]}  Qb6 {[%clk 0:02:24]} 14. Nec1 {[%clk 0:02:05]}  Nd7 {[%clk 0:02:07]} 15. Qb3 {[%clk 0:01:58]}  Qxb3 {[%clk 0:01:53]} 16. Nxb3 {[%clk 0:01:57]}  Rfc8 {[%clk 0:01:53]} 17. Rfe1 {[%clk 0:01:52]}  g6 {[%clk 0:01:46]} 18. h3 {[%clk 0:01:46]}  Ra7 {[%clk 0:01:36]} 19. Re2 {[%clk 0:01:43]}  b6 {[%clk 0:01:36]} 20. g4 {[%clk 0:01:08]}  Rb7 {[%clk 0:01:35]} 21. Nd2 {[%clk 0:00:57]}  b5 {[%clk 0:01:32]} 22. axb5 {[%clk 0:00:57]}  Rxb5 {[%clk 0:01:33]} 23. Nf3 {[%clk 0:00:50]}  Nb6 {[%clk 0:01:27]} 24. Kg2 {[%clk 0:00:48]}  Nc4 {[%clk 0:01:22]} 25. h4 {[%clk 0:00:46]}  Rd8 {[%clk 0:01:15]} 26. h5 {[%clk 0:00:42]}  Rd7 {[%clk 0:01:14]} 27. hxg6 {[%clk 0:00:41]}  hxg6 {[%clk 0:01:14]} 28. Bg3 {[%clk 0:00:32]}  Rdb7 {[%clk 0:01:13]} 29. Ra2 {[%clk 0:00:28]}  Rb3 {[%clk 0:01:05]} 30. Nd2 {[%clk 0:00:23]}  Nxd2 {[%clk 0:01:01]} 31. Rxd2 {[%clk 0:00:23]}  g5 {[%clk 0:00:56]} 32. Kf1 {[%clk 0:00:21]}  Ra7 {[%clk 0:00:46]} 33. Ra4 {[%clk 0:00:20]}  Rb5 {[%clk 0:00:43]} 34. Ke2 {[%clk 0:00:20]}  Nb8 {[%clk 0:00:42]} 35. Bxb8 {[%clk 0:00:19]}  Rxb8 {[%clk 0:00:42]} 36. f3 {[%clk 0:00:19]}  Kg7 {[%clk 0:00:41]} 37. Rd1 {[%clk 0:00:17]}  Rh8 {[%clk 0:00:36]} 38. Rf1 {[%clk 0:00:15]}  Bd6 {[%clk 0:00:31]} 39. Kd2 {[%clk 0:00:14]}  Bc7 {[%clk 0:00:24]} 40. Kc2 {[%clk 0:00:11]}  Rb7 {[%clk 0:00:24]} 41. Rf2 {[%clk 0:00:11]}  Rh1 {[%clk 0:00:23]} 42. Nc5 {[%clk 0:00:11]}  Rb5 {[%clk 0:00:23]} 43. Nd3 {[%clk 0:00:11]}  Bd6 {[%clk 0:00:23]} 44. Nc1 {[%clk 0:00:08]}  Kg6 {[%clk 0:00:21]} 45. Nd3 {[%clk 0:00:08]}  f5 {[%clk 0:00:20]} 46. Re2 {[%clk 0:00:07]}  Kf6 {[%clk 0:00:21]} 47. Rf2 {[%clk 0:00:07]}  Rg1 {[%clk 0:00:15]} 48. Ra2 {[%clk 0:00:06]}  Bg3 {[%clk 0:00:10]} 49. Re2 {[%clk 0:00:05]}  Bd6 {[%clk 0:00:10]} 50. Rf2 {[%clk 0:00:05]}  Rh1 {[%clk 0:00:09]} 51. Ra4 {[%clk 0:00:04]}  Rh3 {[%clk 0:00:09]} 52. Ra1 {[%clk 0:00:04]}  Bf4 {[%clk 0:00:08]} 53. Re1 {[%clk 0:00:04]}  Bd6 {[%clk 0:00:06]} 54. Rfe2 {[%clk 0:00:04]}  Bg3 {[%clk 0:00:02]} 55. Rxe6+ {[%clk 0:00:04]}  Kf7 {[%clk 0:00:02]} 56. Re7+ {[%clk 0:00:04]}  Kf8 {[%clk 0:00:03]} 57. Re8+ {[%clk 0:00:05]}  Kf7 {[%clk 0:00:03]} 58. R1e7+ {[%clk 0:00:05]}  Kf6 {[%clk 0:00:04]} 59. Re6+ {[%clk 0:00:06]}  Kf7 {[%clk 0:00:04]} 60. R8e7+ {[%clk 0:00:06]}  Kf8 {[%clk 0:00:04]} 61. Re8+ {[%clk 0:00:05]}  Kf7 {[%clk 0:00:04]} 62. gxf5 {[%clk 0:00:06]}  Rh2+ {[%clk 0:00:04]} 63. Re2 {[%clk 0:00:06]}  Rxe2+ {[%clk 0:00:04]} 64. Rxe2 {[%clk 0:00:06]}  Kf6 {[%clk 0:00:05]} 65. Rg2 {[%clk 0:00:04]}  Bd6 {[%clk 0:00:05]} 66. Re2 {[%clk 0:00:02]}  Kxf5 {[%clk 0:00:05]} 67. Rg2 {[%clk 0:00:02]}  Rb8 {[%clk 0:00:05]} 68. Rg4 {[%clk 0:00:02]}  Re8 {[%clk 0:00:05]} 69. Rg2 {[%clk 0:00:02]}  Re3 {[%clk 0:00:05]} 70. Rf2 {[%clk 0:00:03]}  Bg3 {[%clk 0:00:05]} 71. Rf1 {[%clk 0:00:02]}  Re2+ {[%clk 0:00:06]} 72. Kb3 {[%clk 0:00:03]}  Rd2 {[%clk 0:00:06]} 73. Nc5 {[%clk 0:00:02]}  Kf4 {[%clk 0:00:06]} 74. Ne6+ {[%clk 0:00:03]}  Kf5 {[%clk 0:00:06]} 75. Nc5 {[%clk 0:00:03]}  Kf4 {[%clk 0:00:07]} 76. Ne6+ {[%clk 0:00:04]}  Kf5 {[%clk 0:00:07]} 77. Nc5 {[%clk 0:00:04]} 1/2-1/2


[Site "https://www.chess.com"]